bitfinex-derivatives/quotes_SOLF0:USTF0_20250613
["timestamp","ask_amount","ask_price","bid_price","bid_amount"]
[1749785234231,441.84,144.14,144.02,49.28]
[1749785234429,441.84,144.14,144.08,7.79481846]
[1749785234735,441.84,144.14,144.06,7.79481846]
[1749785234923,5.8034789,144.13,144.06,7.79481846]
[1749785235125,0.05110898,144.11,144.09,6.935]
[1749785235324,0.05110898,144.11,144.08,0.04566155]
[1749785235829,7.79481846,144.1,144.08,0.04566155]
[1749785236027,50.11481846,144.1,144.02,42.34]
[1749785236232,6.936,144.09,144.05,6.9372]
[1749785236430,6.936,144.09,144.02,42.34]
[1749785237038,0.0493543,144.07,144.06,6.9367]
[1749785237632,0.0493543,144.07,144.05,6.9372]
[1749785237833,0.0493543,144.07,144.03,7.79481846]
[1749785238034,0.0493543,144.07,144.06,6.9369]
[1749785240135,0.0493543,144.07,144.05,6.9372]
[1749785240335,0.0493543,144.07,144.02,42.34]
[1749785241842,0.0493543,144.07,144.05,6.937]
[1749785242041,0.0493543,144.07,144.02,42.34]
[1749785242540,6.9860543,144.07,144.02,42.34]
[1749785243040,0.0493543,144.07,144.05,6.9373]
[1749785243942,6.9858543,144.07,144.04,6.9377]
[1749785244742,0.0493543,144.07,144.05,6.9374]
[1749785245839,0.0493543,144.07,144.02,42.34]
[1749785246341,0.0493543,144.07,144.06,6.9369]
[1749785253243,0.0493543,144.07,144.06,11.48804724]
[1749785254550,0.0493543,144.07,144.06,6.9369]
[1749785257149,5.43e-05,144.07,144.06,11.48804724]
[1749785258453,5.43e-05,144.07,144.06,6.9369]
[1749785264672,5.43e-05,144.07,144.06,11.48804724]
[1749785266070,5.43e-05,144.07,144.06,6.9369]
[1749785271275,5.85397678,144.07,144.06,6.9369]
[1749785273275,5.85397678,144.07,144.05,0.0464365]
[1749785273470,5.85392248,144.06,144.05,0.0464365]
[1749785273776,5.85392248,144.06,144.05,6.9838365]
[1749785280674,5.43e-05,144.07,144.06,6.937]
[1749785282783,2.76715171,144.07,144.05,0.0464365]
[1749785282982,16.05734868,144.06,143.98,4.54928915]
[1749785283184,2.76754509,144.05,143.98,4.54928915]
[1749785283381,6.9375,144.05,144.02,6.9386]
[1749785283583,2.76754791,144.04,144.02,6.9386]
[1749785283780,15.51340923,144.06,144.02,6.9386]
[1749785283973,4.54928915,144.04,143.97,42.14]
[1749785284175,4.597656,144.02,143.94,4.54928915]
[1749785284475,11.48948915,144.0,143.96,6.9415]
[1749785284683,0.04506175,143.99,143.93,42.14]
[1749785284884,0.04506175,143.99,143.94,4.54928915]
[1749785285081,0.04506175,143.99,143.97,6.9411]
[1749785285279,2.76266818,143.98,143.97,6.9411]
[1749785285688,2.76265186,143.98,143.97,6.9411]
[1749785285983,0.04506175,143.99,143.98,6.9408]
[1749785291387,0.04506175,143.99,143.93,46.68928915]
[1749785292283,4.54928915,143.98,143.9,46.46928915]
[1749785292485,0.04474677,143.95,143.9,46.46928915]
[1749785293280,0.04474677,143.95,143.93,6.9429]
[1749785293678,0.04474677,143.95,143.9,46.46928915]
[1749785293883,0.04474677,143.95,143.9,4.54928915]
[1749785294088,0.04474677,143.95,143.88,4.54928915]
[1749785294389,11.53673592,143.95,143.92,6.9437]
[1749785294590,53.47673592,143.95,143.92,6.9437]
[1749785294792,53.47673592,143.95,143.88,4.54928915]
[1749785294992,48.92744677,143.95,143.88,4.54928915]
[1749785295183,41.98474677,143.95,143.88,4.54928915]
[1749785295890,41.98474677,143.95,143.91,6.9439]
[1749785296088,6.9436,143.93,143.87,41.94]
[1749785296284,41.98474677,143.95,143.85,2.3494]
[1749785296285,0.04527258,143.91,143.85,2.3494]
[1749785296481,0.04527258,143.91,143.84,46.48928915]
[1749785296681,0.04527258,143.91,143.84,41.94]
[1749785296989,0.04527258,143.91,143.89,6.9449]
[1749785297191,0.04527258,143.91,143.86,4.54928915]
[1749785298093,4.59456173,143.91,143.82,2.2715]
[1749785298294,0.05196207,143.88,143.86,4.54928915]
[1749785298481,0.04804144,143.88,143.86,4.54928915]
[1749785298685,0.04804144,143.88,143.87,6.9462]
[1749785300790,4.144e-05,143.88,143.87,6.9462]
[1749785300992,41.94,143.95,143.93,6.9428]
[1749785301299,2.181,143.97,143.89,41.94]
[1749785301491,2.181,143.97,143.96,6.9418]
[1749785302891,0.04886273,143.98,143.97,6.9413]
[1749785304799,2.3729,144.02,143.96,4.5609723]
[1749785305395,2.3729,144.02,144.01,6.9394]
[1749785305901,2.3729,144.02,144.0,6.98368687]
[1749785306293,2.3729,144.02,144.01,6.9394]
[1749785306696,2.3729,144.02,144.0,0.04398687]
[1749785306896,2.3729,144.02,144.0,6.98338687]
[1749785307292,2.3729,144.02,144.0,0.04398687]
[1749785307499,2.3729,144.02,144.01,6.9394]
[1749785310098,0.0438786,144.03,144.02,6.9389]
[1749785310399,2.2976,144.07,144.02,4.55444802]
[1749785310602,41.94,144.1,144.04,4.55444802]
[1749785310803,5.73292029,144.09,144.04,4.55444802]
[1749785311003,48.8754,144.1,144.04,4.55444802]
[1749785311406,0.05164041,144.08,144.06,0.05062814]
[1749785312206,0.05164041,144.08,144.07,6.9363]
[1749785312507,0.05164041,144.08,144.06,0.05062814]
[1749785312804,0.05164041,144.08,144.07,6.9365]
[1749785316304,4.60608843,144.08,143.99,46.49444802]
[1749785316503,4.55444802,144.03,143.96,46.49444802]
[1749785317301,0.05011001,144.01,143.98,0.04707742]
[1749785317498,0.05011001,144.01,143.99,6.9401]
[1749785317702,0.05011001,144.01,143.98,0.04707742]
[1749785318103,49.77902177,144.01,143.98,0.04707742]
[1749785318610,48.90971001,144.01,143.98,6.98757742]
[1749785319013,41.97011001,144.01,143.98,0.04707742]
[1749785319309,41.97011001,144.01,143.99,6.9404]
[1749785319614,41.97011001,144.01,144.0,6.9399]
[1749785319811,0.05011001,144.01,144.0,6.9399]
[1749785321102,0.05011001,144.01,143.98,0.04707742]
[1749785321103,0.05011001,144.01,143.99,6.9401]
[1749785321605,0.05011001,144.01,143.98,0.04707742]
[1749785321908,0.05011001,144.01,144.0,6.9399]
[1749785324612,1.001e-05,144.01,144.0,14.74881176]
[1749785325414,1.001e-05,144.01,144.0,6.9399]
[1749785327515,1.001e-05,144.01,143.98,0.04707742]
[1749785328711,1.001e-05,144.01,144.0,6.9399]
[1749785335120,1.001e-05,144.01,143.99,6.9402]
[1749785336522,1.001e-05,144.01,144.0,6.9399]
[1749785337221,1.001e-05,144.01,143.99,6.9402]
[1749785337425,1.001e-05,144.01,143.98,0.04707742]
[1749785337726,6.9404,143.99,143.98,0.04707742]
[1749785338226,6.9401,144.0,143.98,0.04707742]
[1749785338426,1.001e-05,144.01,143.98,0.04707742]
[1749785338928,1.001e-05,144.01,143.99,6.9401]
[1749785339727,6.93971001,144.01,143.98,6.98767742]
[1749785340626,6.9399,144.0,143.98,0.04707742]
[1749785341023,4.5557678,144.0,143.98,0.04707742]
[1749785342327,11.4958678,144.0,143.98,0.04707742]
[1749785343037,6.9404,143.99,143.98,0.04707742]
[1749785343236,4.5557678,144.0,143.96,6.9416]
[1749785343436,4.5557678,143.98,143.91,41.74]
[1749785343635,4.5557678,143.96,143.94,6.9425]
[1749785344026,11.4968678,143.98,143.91,46.2957678]
[1749785344337,3.68e-06,143.96,143.93,0.04494306]
[1749785344529,15.2152,144.02,143.95,4.5557678]
[1749785344731,15.2152,144.02,144.01,6.9394]
[1749785344935,23.72060136,144.02,144.01,6.9394]
[1749785345229,15.2152,144.02,144.01,6.9394]
[1749785345434,20.98477214,144.02,144.01,6.9394]
[1749785346536,8.06477214,144.02,144.01,6.9394]
[1749785346940,8.06477214,144.02,144.0,0.04837484]
[1749785347139,2.2952,144.02,144.0,0.04837484]
[1749785347435,2.2952,144.02,144.01,6.9394]
[1749785347739,10.79780128,144.02,144.0,0.04837484]
[1749785348037,8.50260128,144.01,144.0,0.04837484]
[1749785348236,5.76122488,144.01,144.0,0.04837484]
[1749785350643,5.76122488,144.01,144.0,6.9399]
[1749785351341,5.76122488,144.01,143.99,6.9401]
[1749785351642,0.04831206,144.01,143.99,6.99194796]
[1749785351939,5.82223855,144.01,143.99,0.05184796]
[1749785352240,5.82223855,144.01,144.0,6.9399]
[1749785352634,0.04831206,144.01,144.0,6.9399]
[1749785353441,5.82244838,144.01,144.0,6.9399]
[1749785353932,0.04831206,144.01,144.0,6.9399]
[1749785356135,2.80052443,144.01,144.0,6.9399]
[1749785356338,0.04831206,144.01,144.0,6.9399]
[1749785356539,2.80052707,144.01,144.0,6.9399]
[1749785356838,0.04831206,144.01,144.0,6.9399]
[1749785357037,1.206e-05,144.01,144.0,6.9399]
[1749785358644,1.206e-05,144.01,144.0,11.4956678]
[1749785358943,1.206e-05,144.01,144.0,6.9399]
[1749785363242,1.206e-05,144.01,144.0,11.4956678]
[1749785363449,14.11,144.03,144.02,6.9389]
[1749785363641,3.5875,144.03,144.02,6.9389]
[1749785363837,3.04,144.06,144.01,41.54]
[1749785364034,5.80277245,144.05,144.01,41.54]
[1749785364236,3.04,144.06,144.01,41.54]
[1749785364441,3.04,144.06,144.02,0.04910293]
[1749785364442,0.0445267,144.05,144.02,0.04910293]
[1749785364647,0.0445267,144.05,144.03,4.5557678]
[1749785365049,0.0445267,144.05,144.04,6.9376]
[1749785365248,5.84637438,144.05,144.02,0.04910293]
[1749785365543,2.75875803,144.04,144.02,0.04910293]
[1749785365744,6.9383,144.04,144.02,0.04910293]
[1749785366351,0.0445267,144.05,144.02,0.04910293]
[1749785366352,6.9384,144.03,144.02,0.04910293]
[1749785366744,4.6002945,144.05,144.02,0.04910293]
[1749785366943,6.9384,144.03,144.02,0.04910293]
[1749785367157,12.74036179,144.03,144.02,0.04910293]
[1749785368054,15.44975012,144.03,144.02,0.04910293]
[1749785368242,15.44975677,144.03,144.02,0.04910293]
[1749785368448,15.44975673,144.03,144.02,0.04910293]
[1749785368649,15.44976017,144.03,144.02,0.04910293]
[1749785368951,13.06725015,144.03,143.95,41.54]
[1749785369151,8.51179368,144.02,143.95,41.54]
[1749785369353,8.5117817,144.01,143.95,41.54]
[1749785369655,5.80196179,144.0,143.96,4.55481693]
[1749785369851,0.05102157,143.99,143.97,0.04896812]
[1749785370356,0.05102157,143.99,143.98,6.9409]
[1749785370857,3.04,144.06,143.98,4.55481693]
[1749785371047,5.79786533,144.05,144.04,6.9379]
[1749785371251,8.50677648,144.05,144.04,6.9379]
[1749785371455,8.50677664,144.05,144.04,6.9379]
[1749785371646,5.79786533,144.05,144.04,6.9379]
[1749785371854,5.79786533,144.05,144.04,11.49271693]
[1749785372054,0.05114295,144.06,144.04,11.49271693]
[1749785372055,0.05114295,144.06,144.05,6.9375]
[1749785372253,8.55509372,144.06,144.03,0.0452734]
[1749785372453,0.05114295,144.06,144.03,0.0452734]
[1749785372657,0.05114295,144.06,144.05,6.9375]
[1749785372846,5.84773181,144.06,144.05,6.9375]
[1749785374059,8.55421299,144.06,144.05,6.9375]
[1749785374360,8.55435284,144.06,144.05,6.9375]
[1749785374555,8.55435365,144.06,144.05,6.9375]
[1749785374857,8.55435405,144.06,144.05,6.9375]
[1749785375049,8.55433662,144.06,144.05,6.9375]
[1749785375250,5.84773181,144.06,144.05,6.9375]
[1749785375554,8.55436023,144.06,144.05,6.9375]
[1749785375758,8.55437148,144.06,144.05,6.9375]
[1749785376550,5.84773181,144.06,144.05,6.9375]
[1749785376745,8.55666169,144.06,144.05,6.9375]
[1749785376948,5.84773181,144.06,144.05,6.9375]
[1749785377145,8.55458585,144.06,144.04,6.9377]
[1749785377345,8.48874001,144.05,143.9,12.48269454]
[1749785377555,14.79238323,144.06,143.9,12.48269454]
[1749785377556,7.80124028,144.0,143.9,7.80124028]
[1749785377750,7.80124028,143.98,143.92,6.9436]
[1749785377952,15.43458486,143.97,143.92,6.9436]
[1749785378153,6.9414,143.97,143.92,6.9436]
[1749785378350,6.9414,143.97,143.88,12.25034028]
[1749785378351,6.9426,143.95,143.93,0.05348114]
[1749785378556,5.84654813,143.96,143.93,0.05348114]
[1749785378557,22.13888444,143.96,143.93,0.05348114]
[1749785378748,8.50817169,143.95,143.93,0.05348114]
[1749785378953,8.50817169,143.95,143.86,0.4196]
[1749785378954,12.74260617,143.94,143.89,6.945]
[1749785379256,5.79972019,143.93,143.85,49.34124028]
[1749785379460,48.4831,143.94,143.87,7.80124028]
[1749785379761,2.71573435,143.93,143.87,7.80124028]
[1749785379952,0.05314257,143.91,143.89,0.0496994]
[1749785380651,0.05314257,143.91,143.9,6.9447]
[1749785383553,4.257e-05,143.91,143.9,6.9447]
[1749785385651,4.257e-05,143.91,143.9,14.74594028]
[1749785385851,4.257e-05,143.91,143.9,11.5547]
[1749785386064,4.257e-05,143.91,143.9,19.35594028]
[1749785389154,4.257e-05,143.91,143.9,11.5547]
[1749785389351,4.257e-05,143.91,143.9,19.35594028]
[1749785390762,14.29,143.96,143.95,6.9423]
[1749785395566,14.29,143.96,143.94,6.98730067]
[1749785395866,14.29,143.96,143.94,0.04470067]
[1749785396170,14.29,143.96,143.95,6.9423]
[1749785397471,14.29,143.96,143.94,6.98730067]
[1749785397658,14.29,143.96,143.94,0.04470067]
[1749785398056,14.29,143.96,143.95,6.9423]
[1749785400567,14.29,143.96,143.94,0.04470067]
[1749785402364,6.9423,143.95,143.94,0.04470067]
[1749785402566,18.9278,143.96,143.9,4.55765465]
[1749785402772,4.55765465,143.95,143.89,41.38]
[1749785402964,6.9441,143.92,143.9,6.9444]
[1749785403466,6.99102845,143.92,143.9,6.99132997]
[1749785403773,6.99102845,143.92,143.9,0.04692997]
[1749785404172,0.04692845,143.92,143.9,0.04692997]
[1749785404763,0.04692845,143.92,143.9,6.99142997]
[1749785405372,6.99072845,143.92,143.9,6.99142997]
[1749785405876,9.63201205,143.91,143.9,0.04692997]
[1749785406170,2.68812793,143.91,143.83,45.96172311]
[1749785406368,6.9454,143.89,143.83,45.96172311]
[1749785406869,6.9454,143.89,143.86,6.9462]
[1749785407167,0.04779998,143.89,143.85,4.56172311]
[1749785407374,0.04779998,143.89,143.88,4.5612059]
[1749785407573,0.04779998,143.89,143.88,11.5069059]
[1749785408273,0.04779998,143.89,143.88,6.9457]
[1749785408474,2.73611958,143.89,143.88,6.9457]
[1749785408674,2.73617098,143.89,143.88,6.9457]
[1749785408878,2.73625741,143.89,143.88,6.9457]
[1749785409068,2.73625709,143.89,143.88,6.9457]
[1749785409673,0.04779998,143.89,143.88,6.9457]
[1749785409874,0.04779998,143.89,143.87,6.9461]
[1749785410480,0.04779998,143.89,143.88,6.9457]
[1749785410973,0.04779998,143.89,143.88,3.3308]
[1749785411569,0.04779998,143.89,143.87,6.9459]
[1749785412469,0.04779998,143.89,143.85,4.56108445]
[1749785412676,9.998e-05,143.89,143.88,4.56108445]
[1749785412873,3.04,143.92,143.88,45.80108445]
[1749785413072,14.29,143.96,143.91,4.56108445]
[1749785413267,14.29,143.96,143.94,4.56108445]
[1749785413468,14.29,143.96,143.95,6.9423]
[1749785414767,14.29,143.96,143.94,0.04464342]
[1749785415774,14.29,143.96,143.95,6.9423]
[1749785416073,14.29,143.96,143.94,0.04464342]
[1749785416679,14.29,143.96,143.95,7.81297708]
[1749785416879,14.29,143.96,143.95,14.75527708]
[1749785417186,14.29,143.96,143.95,6.9423]
[1749785417374,6.9423,143.95,143.94,0.04464342]
[1749785417680,7.8096018,143.95,143.87,41.22]
[1749785417881,4.5559,143.94,143.87,41.22]
[1749785418178,6.944,143.92,143.89,6.9449]
[1749785418576,6.99373252,143.92,143.89,6.9449]
[1749785419577,6.99373252,143.92,143.9,6.9445]
[1749785419774,6.99373252,143.92,143.87,41.22]
[1749785419978,0.04973252,143.92,143.87,41.22]
[1749785420179,0.04973252,143.92,143.9,6.9445]
[1749785421171,6.99373252,143.92,143.89,6.945]
[1749785421373,0.04973252,143.92,143.89,6.945]
[1749785421570,5.82731458,143.92,143.89,6.945]
[1749785421982,13.63691638,143.92,143.89,6.945]
[1749785422283,6.9443,143.91,143.88,6.9454]
[1749785422785,7.85933432,143.92,143.84,41.24]
[1749785422979,0.04970429,143.89,143.84,41.24]
[1749785423375,6.99520429,143.89,143.86,6.9463]
[1749785423675,0.04970429,143.89,143.86,6.9463]
[1749785423870,0.04970429,143.89,143.87,6.9461]
[1749785424886,0.04970429,143.89,143.86,6.9464]
[1749785425082,7.8096018,143.88,143.81,441.3]
[1749785425389,0.04772587,143.86,143.81,41.24]
[1749785426188,6.99452587,143.86,143.81,41.24]
[1749785426388,0.04772587,143.86,143.81,41.24]
[1749785426589,6.99442587,143.86,143.83,6.9478]
[1749785427080,6.9481,143.84,143.76,1.21003494]
[1749785427276,0.05011168,143.81,143.76,7.82993615]
[1749785427485,1.168e-05,143.81,143.8,7.82993615]
[1749785427678,1.168e-05,143.81,143.8,14.77923615]
[1749785428284,1.168e-05,143.81,143.8,6.9493]
[1749785435796,1.168e-05,143.81,143.8,11.51494149]
[1749785438298,1.168e-05,143.81,143.79,6.99759404]
[1749785438999,4.56564149,143.8,143.74,4.56564149]
[1749785439297,6.9502,143.79,143.73,41.24]
[1749785439495,4.56564149,143.8,143.76,6.9512]
[1749785439796,4.56564149,143.8,143.73,41.24]
[1749785439797,12.73484149,143.82,143.74,4.56564149]
[1749785439999,0.04579146,143.79,143.76,4.56564149]
[1749785440402,0.04579146,143.79,143.78,6.9505]
[1749785441788,0.04579146,143.79,143.73,41.24]
[1749785442201,6.99589146,143.79,143.76,6.9512]
[1749785442701,6.99589146,143.79,143.78,6.9505]
[1749785442702,0.04579146,143.79,143.78,6.9505]
[1749785443501,0.04579146,143.79,143.77,6.9507]
[1749785443796,0.04579146,143.79,143.74,7.83150493]
[1749785444500,0.04579146,143.79,143.78,6.9505]
[1749785445901,9.34579146,143.79,143.78,6.9505]
[1749785446502,9.34579146,143.79,143.75,6.9515]
[1749785446709,0.05025804,143.78,143.71,7.83589679]
[1749785446896,0.05025804,143.78,143.7,41.1]
[1749785447096,9.894e-05,143.75,143.74,6.9524]
[1749785447301,9.3,143.79,143.74,48.93589679]
[1749785447497,9.3,143.79,143.76,7.83589679]
[1749785447703,9.3,143.79,143.77,6.9506]
[1749785448206,9.3,143.79,143.75,7.83589679]
[1749785448405,0.04603039,143.78,143.76,0.04934989]
[1749785448907,13.24603039,143.78,143.76,0.04934989]
[1749785449509,20.19663039,143.78,143.76,0.04934989]
[1749785449698,13.24603039,143.78,143.76,0.04934989]
[1749785450500,20.19683039,143.78,143.76,0.04934989]
[1749785450796,13.24603039,143.78,143.76,0.04934989]
[1749785451606,20.19653039,143.78,143.76,0.04934989]
[1749785452700,6.9509,143.77,143.76,0.04934989]
[1749785453298,20.19663039,143.78,143.76,0.04934989]
[1749785456213,26.82603039,143.78,143.77,6.9509]
[1749785456508,1.28,143.82,143.77,7.83317492]
[1749785456710,1.28,143.82,143.79,7.83317492]
[1749785457101,1.28,143.82,143.78,7.83317492]
[1749785457302,1.28,143.82,143.76,41.1]
[1749785457303,8.2288,143.82,143.79,6.9498]
[1749785457501,1.3253636,143.82,143.79,0.05320415]
[1749785458400,8.2741636,143.82,143.79,7.00290415]
[1749785459511,6.9492,143.81,143.79,0.05320415]
[1749785459711,4.6,143.88,143.8,42.76]
[1749785459912,4.6,143.88,143.87,7.82482962]
[1749785460111,4.6,143.88,143.87,6.9461]
[1749785460315,6.9216,143.95,143.86,7.82482962]
[1749785460516,5.68487558,143.94,143.88,7.82482962]
[1749785460712,6.99724108,143.92,143.9,0.04695266]
[1749785460906,0.05334108,143.92,143.9,0.04695266]
[1749785461217,6.9442,143.91,143.9,0.04695266]
[1749785461410,0.05334108,143.92,143.9,0.04695266]
[1749785465011,0.05334108,143.92,143.9,6.99125266]
[1749785465215,0.05334108,143.92,143.9,0.04695266]
[1749785466413,0.05334108,143.92,143.91,6.9442]
[1749785466615,0.05334108,143.92,143.91,11.50378889]
[1749785467921,0.05334108,143.92,143.91,6.9442]
[1749785468312,4.108e-05,143.92,143.91,11.50378889]
[1749785468517,49.6312,144.0,143.91,4.55701437]
[1749785468710,49.6312,144.0,143.95,4.55701437]
[1749785468911,9.34,143.99,143.95,4.55701437]
[1749785469316,9.34,143.99,143.95,7.80842362]
[1749785469518,0.04530801,143.98,143.97,6.9413]
[1749785470719,0.04530801,143.98,143.96,0.04599788]
[1749785470923,7.85373163,143.98,143.9,42.74]
[1749785471218,6.9218,143.98,143.9,50.54842362]
[1749785471425,2.2351,143.98,143.94,7.80842362]
[1749785471617,9.34,143.99,143.94,7.80842362]
[1749785471813,0.05315845,143.98,143.95,0.05222382]
[1749785472617,0.05315845,143.98,143.97,6.941]
[1749785472821,0.05315845,143.98,143.95,0.05222382]
[1749785473227,0.05315845,143.98,143.97,6.9413]
[1749785475927,5.845e-05,143.98,143.97,6.9413]
[1749785477030,4.59,144.03,143.96,7.80842362]
[1749785477228,4.59,144.03,143.99,7.80842362]
[1749785477430,4.59,144.03,144.01,7.80842362]
[1749785477629,4.59,144.03,144.02,6.9389]
[1749785477930,11.6479,144.06,144.01,7.80842362]
[1749785478129,0.05147709,144.05,144.03,6.938]
[1749785478325,0.05147709,144.05,144.02,0.04433542]
[1749785478725,0.05147709,144.05,144.02,6.98283542]
[1749785478924,6.98927709,144.05,144.02,6.98283542]
[1749785480233,0.05147709,144.05,144.02,6.98283542]
[1749785481627,0.05147709,144.05,144.03,6.9381]
[1749785481821,0.05147709,144.05,144.02,0.04433542]
[1749785482228,6.98927709,144.05,144.03,6.9384]
[1749785482722,0.05147709,144.05,144.03,6.9384]
[1749785483328,0.05147709,144.05,144.04,6.9379]
[1749785484131,0.05147709,144.05,144.03,6.9382]
[1749785485128,6.98887709,144.05,144.02,6.98313542]
[1749785485526,6.9394,144.01,143.99,6.9403]
[1749785485728,6.9394,144.01,143.98,42.72]
[1749785485729,7.80842362,144.02,143.95,42.7]
[1749785485929,7.80842362,144.0,143.95,42.7]
[1749785486135,6.9403,143.99,143.96,6.9414]
[1749785486340,7.80842362,144.0,143.92,50.50842362]
[1749785486537,0.04678015,143.97,143.95,0.04381723]
[1749785486740,197.76842362,144.04,143.99,6.9399]
[1749785486939,0.04937224,144.03,144.0,0.05065305]
[1749785487739,6.9392,144.02,144.0,0.05065305]
[1749785488943,6.9394,144.01,144.0,0.05065305]
[1749785489338,11.49549053,144.01,144.0,0.05065305]
[1749785490447,6.9404,143.99,143.94,4.55609053]
[1749785491049,6.9404,143.99,143.96,6.9415]
[1749785491242,6.9408,143.98,143.92,47.25609053]
[1749785491437,0.04766321,143.96,143.94,6.99025065]
[1749785491640,4.55609053,143.97,143.94,0.04907471]
[1749785491845,6.9424,143.95,143.94,0.04907471]
[1749785492244,0.04777981,143.96,143.94,0.04907471]
[1749785492449,6.98977981,143.96,143.94,0.04907471]
[1749785493049,6.9422,143.95,143.94,0.04907471]
[1749785493849,13.82427034,143.96,143.94,0.04907471]
[1749785494249,0.04777981,143.96,143.94,4.60516524]
[1749785494552,0.04777981,143.96,143.95,6.9422]
[1749785497553,7.981e-05,143.96,143.95,6.9422]
[1749785499962,42.28,144.03,144.02,6.9389]
[1749785500266,6.44883378,144.1,144.01,4.55609053]
[1749785500461,8.31237052,144.09,144.05,4.55609053]
[1749785500758,2.398,144.1,144.05,4.55609053]
[1749785501056,0.04674664,144.09,144.08,6.936]
[1749785502856,0.04674664,144.09,144.07,6.9362]
[1749785503561,0.04674664,144.09,144.08,6.936]
[1749785504656,8.75943378,144.14,144.07,7.79694603]
[1749785504963,5.69158079,144.13,144.11,7.79694603]
[1749785505162,46.973,144.15,144.09,7.79694603]
[1749785505353,6.9337,144.13,144.09,7.79694603]
[1749785505755,0.04727832,144.12,144.1,0.04827432]
[1749785506463,0.04727832,144.12,144.1,6.98307432]
[1749785506764,0.04727832,144.12,144.1,0.04827432]
[1749785507158,0.04727832,144.12,144.1,6.98307432]
[1749785507559,0.04727832,144.12,144.11,6.9345]
[1749785508165,5.7659114,144.12,144.1,0.04827432]
[1749785508364,0.04727832,144.12,144.1,0.04827432]
[1749785509565,0.04727832,144.12,144.11,6.9345]
[1749785514163,0.51,144.16,144.1,7.84307369]
[1749785514366,0.51,144.16,144.12,7.79479937]
[1749785514768,6.9327,144.15,144.12,6.9338]
[1749785514970,0.51,144.16,144.1,7.79479937]
[1749785515270,0.51,144.16,144.13,6.9336]
[1749785515271,0.05301724,144.14,144.13,6.9336]
[1749785516571,0.51,144.16,144.15,6.9326]
[1749785516773,0.0001,144.16,144.15,14.72739937]
[1749785517367,6.929,144.23,144.15,7.79479937]
[1749785517565,7.366e-05,144.2,144.18,0.04695277]
[1749785517866,4.7244,144.25,144.19,7.78277551]
[1749785518070,4.7244,144.25,144.23,6.9285]
[1749785518268,2.3809,144.25,144.23,6.9285]
[1749785518470,2.42524807,144.25,144.23,6.98198454]
[1749785518678,2.42524807,144.25,144.23,0.05348454]
[1749785519472,0.04434807,144.25,144.23,0.05348454]
[1749785520268,0.04434807,144.25,144.23,7.83626005]
[1749785520671,0.04434807,144.25,144.24,6.9283]
[1749785521868,4.807e-05,144.25,144.24,6.9283]
[1749785526182,4.807e-05,144.25,144.23,0.05348454]
[1749785526678,7.78105251,144.24,144.18,41.46]
[1749785526880,7.78105251,144.24,144.16,7.78105251]
[1749785526881,6.9296,144.22,144.16,7.78105251]
[1749785527086,41.46,144.25,144.16,7.78105251]
[1749785527286,6.9284,144.24,144.16,7.78105251]
[1749785527475,41.46,144.25,144.16,7.78105251]
[1749785527677,7.78105251,144.2,144.12,49.24105251]
[1749785527882,7.78105251,144.22,144.12,49.24105251]
[1749785528181,7.78105251,144.22,144.16,6.9319]
[1749785528382,6.9306,144.2,144.16,6.9319]
[1749785528583,7.78105251,144.22,144.16,6.9319]
[1749785528785,0.04944117,144.2,144.18,0.05328252]
[1749785528985,0.04944117,144.2,144.18,6.98418252]
[1749785529185,0.04944117,144.2,144.18,0.05328252]
[1749785529776,7.78105251,144.19,144.11,7.78105251]
[1749785529989,7.78105251,144.17,144.1,41.46]
[1749785530182,49.24105251,144.17,144.08,7.78105251]
[1749785530576,6.9325,144.16,144.13,6.9332]
[1749785530775,6.98226398,144.16,144.13,0.04661087]
[1749785531578,0.04976398,144.16,144.13,0.04661087]
[1749785531779,7.78105251,144.15,144.13,0.04661087]
[1749785531980,7.78105251,144.15,144.07,440.7]
[1749785531981,6.9331,144.14,144.07,440.7]
[1749785532293,7.78105251,144.15,144.07,440.7]
[1749785532478,14.71395251,144.15,144.11,6.9343]
[1749785532681,7.78105251,144.15,144.07,440.7]
[1749785532880,0.04660898,144.12,144.1,0.05062872]
[1749785533080,0.04660898,144.12,144.1,6.98532872]
[1749785533280,0.04660898,144.12,144.1,0.05062872]
[1749785533780,0.04660898,144.12,144.11,6.9345]
[1749785534391,4.6488,144.18,144.11,6.9345]
[1749785534392,2.3589,144.18,144.11,41.46]
[1749785534685,2.3589,144.18,144.13,7.78105251]
[1749785534881,2.3589,144.18,144.16,6.9318]